Workbook

Sheet ИД
A2: Расчет двухтрубной системы отопления с естественной циркуляцией (по «Справочник проектировщика: Внутренние санитарно-технические устройства. Часть 1. Отопление» (Староверов) 1975, переизд. 1990, с.115)
A4: Все расстояния в метрах. | J4: Расширительный бак
J5: Гор. расстояние от гл. стояка до ст. 3 (L)
J6: =J11+L11+R11+X11 -> 13.83
J7: Гор. расстояние от гл. стояка до ст. 2 (L)
J8: =J11+L11+R11 -> 9.86
J9: Гор. расстояние от гл. стояка до ст. 1 (L)
J10: =J11+L11 -> 6.06
J11: 1.87 | L11: 4.19 | R11: 3.8 | X11: 3.97
I12: 4 | J12: 5 | K12: 5.1 | L12: 5.2 | Q12: 6 | R12: 17 | W12: 18 | X12: 28 | AC12: 29
D13: расстояние от усл. ЦН воды в котле до верхней гориз. трубы (hг) | E13: =H13+B14/2+0.1 -> 2.26 | H13: 1.9 | I13: 3 | K13: 1.6 | L13: Коэффициент изоляции (b): 3,9 — при неизолированных трубах или изоляции только гл. стояка 3,3 — при изолированном главном стояке и обратной магистрали 1,6 — при всех изолированных трубах | N13: 1.79 | Q13: 7 | R13: Высота отопительного прибора | T13: 1.75 | W13: 19 | Z13: 1.7 | AC13: 30
A14: Высота котла между соед. патрубками | B14: 0.52 | G14: 0 | H14: 1 | I14: 2 | O14: 10 | P14: 9 | Q14: 8 | R14: 0.5 | U14: 22 | V14: 21 | W14: 20 | AA14: 33 | AB14: 32 | AC14: 31
O15: Ось ЦО | U15: Ось ЦО | AA15: Ось ЦО
C16: Ось ЦН | K16: 0.2 | L16: Верт. расст. между ЦН и ЦО
P17: 0.75 | V17: 1 | AB17: 0.1
M18: 12 | N18: 11 | S18: 24 | T18: 23 | Y18: 35 | Z18: 34
M19: 13 | N19: 0.1 | O19: Выс. от ОП до лежака | S19: 25 | T19: =N19 -> 0.1 | U19: Выс. от ОП до лежака | Y19: 36 | Z19: 0.2 | AA19: Выс. от ОП до лежака
H20: 16 | I20: 15 | K20: 14.2 | L20: 14.1 | M20: 14 | N20: 27 | S20: 26 | T20: 38 | Y20: 37
H21: 0.1 | N21: 0.2 | T21: =N21 -> 0.2 | Z21: 0
J24: 1.5 | L24: 2.42 | N24: 3.46 | T24: 6.26
A27: Температура горячей воды (из котла) | K27: tг | L27: 90 | N27: °С
A28: Температура обратной воды | K28: tо | L28: 70 | N28: °С
A29: Средн. приращен. плотн. воды при понижении на 1 °С | K29: β | L29: 0.64 | O29: стр. 89
A30: Коэффициент изоляции труб | K30: b | L30: =K13 -> 1.6 | O30: стр. 116
B32: Нагрузка на второй ветке | R32: 3840 | T32: Вт
K34: Циркуляционное кольцо 1 | R34: =1320+150 -> 1470 | T34: Вт | AA34: =R34+R64+R98 -> 3360
A36: Располагаемое давление (для двухтрубной системы) | K36: 1 | L36: ΔPр=b▪hг▪(l+hг)±β▪g▪h1(tг-tо) | N36: = | O36: =(L30*E13*(J10+E13))+(L29*9.81*K16*(L27-L28)) -> 55.19872 | P36: Па
A37: Длина кольца | K37: 2 | L37: Σl | N37: = | O37: =O62 -> 14.92 | P37: м
A38: Удельное располагаемое давление | K38: 3 | L38: ΔP1=ΔPр/Σl | N38: = | O38: =O36/O37 -> 3.699646113 | P38: Па/м
K40: Участки | O40: ДЛИНА | R40: КМС
K41: 1 | L41: Линейный. Длина | O41: =H21 -> 0.1 | P41: м
K42: 2 | L42: Сужение, Отвод. КМС | R42: =0.5+1.2 -> 1.7 | S42: -
K43: 3 | L43: Линейный. Длина | O43: =H13 -> 1.9 | P43: м
K44: 4 | L44: Тройник на отв. (G=1). КМС | R44: 2.3 | S44: -
K45: 5 | L45: Линейный. Длина | O45: =J11 -> 1.87 | P45: м
K46: 5.1 | L46: Тр. на отв (G=0,5, d^=0,74). КМС | R46: 2
K47: 5.2 | L47: Линейный. Длина | O47: =L11 -> 4.19 | P47: м
K48: 6 | L48: Тр. на отв (G=0,5, d^=0,74). КМС | R48: 2
K49: 7 | L49: Линейный. Длина | O49: =N13 -> 1.79 | P49: м
K50: 8 | L50: Отвод, арматура, расшир. КМС | R50: =0.9+0.26+1 -> 2.16
K51: 9 | L51: Линейный. Длина | O51: =P17 -> 0.75 | P51: м
K52: 10 | L52: Отопительный прибор. КМС | R52: 1.5 | S52: -
K53: 11 | L53: Линейный. Длина | O53: =N21 -> 0.2 | P53: м
K54: 12 | L54: Отвод и арматура. КМС | R54: =0.9+0.26 -> 1.16
K55: 13 | L55: Линейный. Длина | O55: =N19 -> 0.1 | P55: м
K56: 14 | L56: Тройн. на слиян. КМС | R56: 3
K57: 14.1 | L57: Линейный. Длина | O57: =L24 -> 2.42 | P57: м
K58: 14.2 | L58: Тройн. на слиян. КМС | R58: 3
K59: 15 | L59: Линейный. Длина | O59: =J24 -> 1.5 | P59: м
K60: 16 | L60: Линейный. Длина | O60: =H21 -> 0.1 | P60: м
K61: 0 | L61: Отвод, котел, арматура. КМС | R61: =1.2+1+0.3 -> 2.5
O62: =SUM(O41:O60) -> 14.92 | P62: м
K64: Циркуляционное кольцо 2 | R64: =1290+150 -> 1440 | T64: Вт
A66: Располагаемое давление (для двухтрубной системы) | K66: 1 | L66: ΔPр=b▪hг▪(l+hг)±β▪g▪h1(tг-tо) | N66: = | O66: =(L30*E13*(J8+E13))+(L29*9.81*K16*(L27-L28)) -> 68.93952 | P66: Па
A67: Длина кольца | K67: 2 | L67: Σl | N67: = | O67: =SUM(O71:O95) -> 21.2 | P67: м
A68: Удельное располагаемое давление | K68: 3 | L68: ΔP1=ΔPр/Σl | N68: = | O68: =O66/O67 -> 3.251864151 | P68: Па/м
K70: Участки | O70: ДЛИНА | R70: КМС
K71: 1 | L71: Линейный. Длина | O71: =O41 -> 0.1 | P71: м
K72: 2 | L72: Сужение, Отвод. КМС | R72: =R42 -> 1.7 | S72: -
K73: 3 | L73: Линейный. Длина | O73: =O43 -> 1.9 | P73: м
K74: 4 | L74: Тройник на отв. (G=1). КМС | R74: =R44 -> 2.3 | S74: -
K75: 5 | L75: Линейный. Длина | O75: =O45 -> 1.87 | P75: м
K76: 5.1 | L76: Тр. на отв (G=0,5, d^=0,74). КМС | R76: 2
K77: 5.2 | L77: Линейный. Длина | O77: 3 | P77: м
K78: 6 | L78: Тр. на проход (G=0,5, d^=0,74). КМС | R78: 2
K79: 17 | L79: Линейный. Длина | O79: =R11 -> 3.8 | P79: м
K80: 18 | L80: Тр. на отв (G=0,5, d^=0,74). КМС | R80: 2
K81: 19 | L81: Линейный. Длина | O81: =T13 -> 1.75 | P81: м
K82: 20 | L82: Отвод, арматура, расшир. КМС | R82: =0.9+0.26+1 -> 2.16
K83: 21 | L83: Линейный. Длина | O83: =V17 -> 1 | P83: м
K84: 22 | L84: Отопительный прибор. КМС | R84: 1.5 | S84: -
K85: 23 | L85: Линейный. Длина | O85: =T21 -> 0.2 | P85: м
K86: 24 | L86: Отвод и арматура. КМС | R86: =0.9+0.26 -> 1.16
K87: 25 | L87: Линейный. Длина | O87: =T19 -> 0.1 | P87: м
K88: 26 | L88: Тр. на слияние. КМС | R88: 3
K89: 27 | L89: Линейный. Длина | O89: =N24 -> 3.46 | P89: м
K90: 14 | L90: Тройн. на проход. КМС | R90: 2
K91: 14.1 | L91: Линейный. Длина | O91: =O57 -> 2.42 | P91: м
K92: 14.2 | L92: Тройн. на проход. КМС | R92: =R58 -> 3
K93: 15 | L93: Линейный. Длина | O93: =O59 -> 1.5 | P93: м
K94: 16 | L94: Линейный. Длина | O94: =O60 -> 0.1 | P94: м
K95: 0 | L95: Отвод, котел, арматура. КМС | R95: =1.2+1+0.3 -> 2.5
O96: =SUM(O71:O94) -> 21.2 | P96: м
K98: Циркуляционное кольцо 3 | R98: =400+50 -> 450 | T98: Вт
A100: Располагаемое давление (для двухтрубной системы) | K100: 1 | L100: ΔPр=b▪hг▪(l+hг)±β▪g▪h1(tг-tо) | N100: = | O100: =(L30*E13*(J6+E13))+(L29*9.81*K16*(L27-L28)) -> 83.29504 | P100: Па
A101: Длина кольца | K101: 2 | L101: Σl | N101: = | O101: =O134 -> 31.57 | P101: м
A102: Удельное располагаемое давление | K102: 3 | L102: ΔP1=ΔPр/Σl | N102: = | O102: =O100/O101 -> 2.63842382 | P102: Па/м
K104: Участки | O104: ДЛИНА | R104: КМС
K105: 1 | L105: Линейный. Длина | O105: =O41 -> 0.1 | P105: м
K106: 2 | L106: Сужение, Отвод. КМС | R106: =R78 -> 2 | S106: -
K107: 3 | L107: Линейный. Длина | O107: =O43 -> 1.9 | P107: м
K108: 4 | L108: Тройник на отв. (G=1). КМС | R108: =R80 -> 2 | S108: -
K109: 5 | L109: Линейный. Длина | O109: =O45 -> 1.87 | P109: м
K110: 5.1 | L110: Тр. на отв (G=0,5, d^=0,74). КМС | R110: 2
K111: 5.2 | L111: Линейный. Длина | O111: =O47 -> 4.19 | P111: м
K112: 6 | L112: Тр. на проход (G=0,5, d^=0,74). КМС | R112: 2
K113: 17 | L113: Линейный. Длина | O113: =O79 -> 3.8 | P113: м
K114: 18 | L114: Тр. на проход (G=0,5, d^=0,74). КМС | R114: 2
K115: 28 | L115: Линейный. Длина | O115: =X11 -> 3.97 | P115: м
K116: 29 | L116: Отвод. КМС | R116: 0.9
K117: 30 | L117: Линейный. Длина | O117: =Z13 -> 1.7 | P117: м
K118: 31 | L118: Отвод, арматура, расшир. КМС | R118: =0.9+0.26+1 -> 2.16
K119: 32 | L119: Линейный. Длина | O119: =AB17 -> 0.1 | P119: м
K120: 33 | L120: Отопительный прибор. КМС | R120: 1.5 | S120: -
K121: 34 | L121: Линейный. Длина | O121: =Z21 -> 0 | P121: м
K122: 35 | L122: Отвод и арматура. КМС | R122: =0.9+0.26 -> 1.16
K123: 36 | L123: Линейный. Длина | O123: =Z19 -> 0.2 | P123: м
K124: 37 | L124: Отвод. КМС | R124: 0.9
K125: 38 | L125: Линейный. Длина | O125: =T24 -> 6.26 | P125: м
K126: 26 | L126: Тр. на проход. КМС | R126: 2
K127: 27 | L127: Линейный. Длина | O127: =O89 -> 3.46 | P127: м
K128: 14 | L128: Тройн. на проход. КМС | R128: 2
K129: 14.1 | L129: Линейный. Длина | O129: =O57 -> 2.42 | P129: м
K130: 14.2 | L130: Тройн. на проход. КМС | R130: =R58 -> 3
K131: 15 | L131: Линейный. Длина | O131: =O59 -> 1.5 | P131: м
K132: 16 | L132: Линейный. Длина | O132: =O60 -> 0.1 | P132: м
K133: 0 | L133: Отвод, котел, арматура. КМС | R133: =1.2+1+0.3 -> 2.5
O134: =SUM(O105:O132) -> 31.57 | P134: м

Sheet ГР_Предв
B1: Труба | C1: Дн | D1: Т.ст | E1: Двн | K1: Поправочный коэффициент на мощность отопительного прибора | L1: β1 | N1: 1.06 | O1: по табл 9.4 справочн. проектир том 1 (от 1,02 до 1,13)
B2: Valtec PP-ALUX | C2: 20 | D2: 3.4 | E2: 13.2 | F2: 20 | K2: Поправочный коэффициент на тип прибора и место установки | L2: β2 | N2: 1.1 | O2: по табл 9.5 справочн. проектир том 1 (от 1,02 до 1,1)
B3: Valtec PP-ALUX | C3: 25 | D3: 4.5 | E3: 16.6 | F3: 25
B4: Valtec PP-ALUX | C4: 32 | D4: 5.4 | E4: 21.2 | F4: 32
B5: Valtec PP-ALUX | C5: 40 | D5: 6.7 | E5: 26.6 | F5: 40 | H5: tг | I5: tо
B6: Valtec PP-ALUX | C6: 50 | D6: 8.3 | E6: 33.4 | F6: 50 | H6: =ИД!L27 -> 90 | I6: =ИД!L28 -> 70 | K6: удельная теплоемкость воды | L6: с | N6: 4187 | O6: Дж/ кг*град C
B7: Valtec PP-ALUX | C7: 63 | D7: 10.5 | E7: 42 | F7: 63
K8: плотн. Воды | L8: 970 | M8: кг/м
K9: объемн расх | L9: =K13/L8 -> 0.3720736004 | M9: м3/ч | N9: =L9/3600 -> 0.0001033537779 | O9: м3/с | P9: =N9*1000 -> 0.1033537779 | Q9: л/с
F11: Дн | H11: № уч | I11: Тепловая нагрузка, Вт | J11: Температурный напор, °C | K11: Расход воды на участке, кг/ч | L11: Длина участка, м | M11: Диаметр трубы, мм | N11: Скорость воды на участке, м/с | O11: Критерий Рейнольдса | P11: Абс. эквив. шерох-ть, мм | Q11: Коэф. кинем. вязкости, м2/с | R11: Коэф. гидр. трения | S11: Удельные потери на трение, Па/м | T11: Потери на трение, Па | U11: Сумма КМС | V11: Динамич. давление, Па | W11: Потери на КМС, Па | X11: Суммарные потери давления,Па
G12: ЦК1
D13: Выход с котла | F13: =VLOOKUP(M13,$E$2:$F$7,2) -> 50 | H13: 1 | I13: =ИД!R34+ИД!R64+ИД!R98+ИД!R32 -> 7200 | J13: 20 | K13: =I13*3600/($N$6*J13)*$N$1*$N$2 -> 360.9113924 | L13: =ИД!O41 -> 0.1 | M13: 40 | N13: =(K13/$L$8/3600)/(PI()*(M13/1000)^2/4) -> 0.0822463232 | O13: =N13*(M13/1000)/Q13 -> 10762.43965 | P13: 0.01 | Q13: =(1.78*10^(-6))/(1+0.0337*$H$6+0.000221*$H$6^2) -> 3.056791056e-07 | R13: =(P13/M13+68/O13)^0.25*0.11 -> 0.03131521769 | S13: =(R13*N13^2*$L$8)/((M13/1000)*2) -> 2.568444385 | T13: =S13*L13 -> 0.2568444385 | U13: =ИД!R42 -> 1.7 | V13: =N13^2*$L$8/2 -> 3.280761974 | W13: =U13*V13 -> 5.577295356 | X13: =W13+T13 -> 5.834139795
D14: Гл. стояк | F14: 50 | H14: 3 | I14: =I13 -> 7200 | J14: 20 | K14: 360.9113924 | L14: =ИД!O43 -> 1.9 | M14: =M13 -> 40 | N14: 0.0822463232 | O14: 10762.43965 | P14: 0.01 | Q14: 3.056791056e-07 | R14: 0.03131521769 | S14: 2.568444385 | T14: 4.880044332 | U14: =ИД!R44 -> 2.3 | V14: 3.280761974 | W14: 7.545752541 | X14: 12.42579687
D15: Первый гор. кусок до разд | F15: 50 | H15: 5 | I15: =I13 -> 7200 | J15: 20 | K15: 360.9113924 | L15: =ИД!O45 -> 1.87 | M15: 40 | N15: 0.0822463232 | O15: 10762.43965 | P15: 0.01 | Q15: 3.056791056e-07 | R15: 0.03131521769 | S15: 2.568444385 | T15: 4.802991 | U15: =ИД!R46 -> 2 | V15: 3.280761974 | W15: 6.561523949 | X15: 11.36451495
D16: Первый гор. кусок после разд. | F16: 50 | H16: 5.2 | I16: =ИД!R34+ИД!R64+ИД!R98 -> 3360 | J16: 20 | K16: 168.4253165 | L16: =ИД!O47 -> 4.19 | M16: 40 | N16: 0.03838161749 | O16: 5022.471838 | P16: 0.01 | Q16: 3.056791056e-07 | R16: 0.03769441952 | S16: 0.6732949437 | T16: 2.821105814 | U16: =ИД!R48 -> 2 | V16: 0.7144770522 | W16: 1.428954104 | X16: 4.250059918
D17: Стояк | F17: 25 | H17: 7 | I17: =ИД!R34 -> 1470 | J17: 20 | K17: 73.68607595 | L17: =ИД!O49 -> 1.79 | M17: 20 | N17: 0.06716783061 | O17: 4394.662859 | P17: 0.01 | Q17: 3.056791056e-07 | R17: 0.03910582433 | S17: 4.278345282 | T17: 7.658238055 | U17: =ИД!R50 -> 2.16 | V17: 2.188085972 | W17: 4.7262657 | X17: 12.38450376
D18: Вход в радиатор | F18: 25 | H18: 9 | I18: =I17 -> 1470 | J18: 20 | K18: 73.68607595 | L18: =ИД!O51 -> 0.75 | M18: =M17 -> 20 | N18: 0.06716783061 | O18: 4394.662859 | P18: 0.01 | Q18: 3.056791056e-07 | R18: 0.03910582433 | S18: 4.278345282 | T18: 3.208758962 | U18: =ИД!R52 -> 1.5 | V18: 2.188085972 | W18: 3.282128959 | X18: 6.49088792
D19: РАДИАТОР
D20: Выход с радиатора | F20: =VLOOKUP(M20,$E$2:$F$7,2) -> 25 | H20: 11 | I20: =I18 -> 1470 | J20: 20 | K20: =I20*3600/($N$6*J20)*$N$1*$N$2 -> 73.68607595 | L20: =ИД!O53 -> 0.2 | M20: 20 | N20: =(K20/$L$8/3600)/(PI()*(M20/1000)^2/4) -> 0.06716783061 | O20: =N20*(M20/1000)/Q20 -> 4394.662859 | P20: 0.01 | Q20: =(1.78*10^(-6))/(1+0.0337*$H$6+0.000221*$H$6^2) -> 3.056791056e-07 | R20: =(P20/M20+68/O20)^0.25*0.11 -> 0.03910582433 | S20: =(R20*N20^2*$L$8)/((M20/1000)*2) -> 4.278345282 | T20: =S20*L20 -> 0.8556690565 | U20: =ИД!R54 -> 1.16 | V20: =N20^2*$L$8/2 -> 2.188085972 | W20: =U20*V20 -> 2.538179728 | X20: =W20+T20 -> 3.393848784
D21: Верт. перемычка | F21: =VLOOKUP(M21,$E$2:$F$7,2) -> 25 | H21: 13 | I21: =I17 -> 1470 | J21: 20 | K21: =I21*3600/($N$6*J21)*$N$1*$N$2 -> 73.68607595 | L21: =ИД!O55 -> 0.1 | M21: =M20 -> 20 | N21: =(K21/$L$8/3600)/(PI()*(M21/1000)^2/4) -> 0.06716783061 | O21: =N21*(M21/1000)/Q21 -> 4394.662859 | P21: 0.01 | Q21: =(1.78*10^(-6))/(1+0.0337*$H$6+0.000221*$H$6^2) -> 3.056791056e-07 | R21: =(P21/M21+68/O21)^0.25*0.11 -> 0.03910582433 | S21: =(R21*N21^2*$L$8)/((M21/1000)*2) -> 4.278345282 | T21: =S21*L21 -> 0.4278345282 | U21: =ИД!R56 -> 3 | V21: =N21^2*$L$8/2 -> 2.188085972 | W21: =U21*V21 -> 6.564257917 | X21: =W21+T21 -> 6.992092445
D22: Первый лежак до слиян | F22: =VLOOKUP(M22,$E$2:$F$7,2) -> 50 | H22: 14.1 | I22: =I18 -> 1470 | J22: 20 | K22: =I22*3600/($N$6*J22)*$N$1*$N$2 -> 73.68607595 | L22: =ИД!O57 -> 2.42 | M22: =M16 -> 40 | N22: =(K22/$L$8/3600)/(PI()*(M22/1000)^2/4) -> 0.01679195765 | O22: =N22*(M22/1000)/Q22 -> 2197.331429 | P22: 0.01 | Q22: =(1.78*10^(-6))/(1+0.0337*$H$6+0.000221*$H$6^2) -> 3.056791056e-07 | R22: =(P22/M22+68/O22)^0.25*0.11 -> 0.04622954312 | S22: =(R22*N22^2*$L$8)/((M22/1000)*2) -> 0.1580534606 | T22: =S22*L22 -> 0.3824893747 | U22: =ИД!R58 -> 3 | V22: =N22^2*$L$8/2 -> 0.1367553733 | W22: =U22*V22 -> 0.4102661198 | X22: =W22+T22 -> 0.7927554945
D23: Первый лежак после слиян | F23: =VLOOKUP(M23,$E$2:$F$7,2) -> 50 | H23: 15 | I23: =I13 -> 7200 | J23: 20 | K23: =I23*3600/($N$6*J23)*$N$1*$N$2 -> 360.9113924 | L23: =ИД!O59 -> 1.5 | M23: =M14 -> 40 | N23: =(K23/$L$8/3600)/(PI()*(M23/1000)^2/4) -> 0.0822463232 | O23: =N23*(M23/1000)/Q23 -> 10762.43965 | P23: 0.01 | Q23: =(1.78*10^(-6))/(1+0.0337*$H$6+0.000221*$H$6^2) -> 3.056791056e-07 | R23: =(P23/M23+68/O23)^0.25*0.11 -> 0.03131521769 | S23: =(R23*N23^2*$L$8)/((M23/1000)*2) -> 2.568444385 | T23: =S23*L23 -> 3.852666578 | U23: 0 | V23: =N23^2*$L$8/2 -> 3.280761974 | W23: =U23*V23 -> 0 | X23: =W23+T23 -> 3.852666578
D24: Вход в котел | F24: =VLOOKUP(M24,$E$2:$F$7,2) -> 50 | H24: 16 | I24: =I13 -> 7200 | J24: 20 | K24: =I24*3600/($N$6*J24)*$N$1*$N$2 -> 360.9113924 | L24: =ИД!O60 -> 0.1 | M24: =M13 -> 40 | N24: =(K24/$L$8/3600)/(PI()*(M24/1000)^2/4) -> 0.0822463232 | O24: =N24*(M24/1000)/Q24 -> 10762.43965 | P24: 0.01 | Q24: =(1.78*10^(-6))/(1+0.0337*$H$6+0.000221*$H$6^2) -> 3.056791056e-07 | R24: =(P24/M24+68/O24)^0.25*0.11 -> 0.03131521769 | S24: =(R24*N24^2*$L$8)/((M24/1000)*2) -> 2.568444385 | T24: =S24*L24 -> 0.2568444385 | U24: =ИД!R61 -> 2.5 | V24: =N24^2*$L$8/2 -> 3.280761974 | W24: =U24*V24 -> 8.201904936 | X24: =W24+T24 -> 8.458749374
X25: =SUM(X13:X24) -> 76.24001589
G26: ЦК2
D27: Выход с котла | F27: =VLOOKUP(M27,$E$2:$F$7,2) -> 50 | H27: 1 | I27: =I13 -> 7200 | J27: 20 | K27: =I27*3600/($N$6*J27)*$N$1*$N$2 -> 360.9113924 | L27: =L13 -> 0.1 | M27: 40 | N27: =(K27/$L$8/3600)/(PI()*(M27/1000)^2/4) -> 0.0822463232 | O27: =N27*(M27/1000)/Q27 -> 10762.43965 | P27: 0.01 | Q27: =(1.78*10^(-6))/(1+0.0337*$H$6+0.000221*$H$6^2) -> 3.056791056e-07 | R27: =(P27/M27+68/O27)^0.25*0.11 -> 0.03131521769 | S27: =(R27*N27^2*$L$8)/((M27/1000)*2) -> 2.568444385 | T27: =S27*L27 -> 0.2568444385 | U27: =U13 -> 1.7 | V27: =N27^2*$L$8/2 -> 3.280761974 | W27: =U27*V27 -> 5.577295356 | X27: =W27+T27 -> 5.834139795
D28: Гл. стояк | F28: 50 | H28: 3 | I28: =I14 -> 7200 | J28: 20 | K28: 360.9113924 | L28: 1.9 | M28: 40 | N28: 0.0822463232 | O28: 10762.43965 | P28: 0.01 | Q28: 3.056791056e-07 | R28: 0.03131521769 | S28: 2.568444385 | T28: 4.880044332 | U28: =U14 -> 2.3 | V28: 3.280761974 | W28: 7.545752541 | X28: 12.42579687
D29: Первый гор. кусок до разд | F29: 50 | H29: 5 | I29: =I15 -> 7200 | J29: 20 | K29: 360.9113924 | L29: 1.87 | M29: 40 | N29: 0.0822463232 | O29: 10762.43965 | P29: 0.01 | Q29: 3.056791056e-07 | R29: 0.03131521769 | S29: 2.568444385 | T29: 4.802991 | U29: =U15 -> 2 | V29: 3.280761974 | W29: 6.561523949 | X29: 11.36451495
D30: Первый гор. кусок после разд. | F30: 50 | H30: 5.2 | I30: =I16 -> 3360 | J30: 20 | K30: 168.4253165 | L30: 4.19 | M30: 40 | N30: 0.03838161749 | O30: 5022.471838 | P30: 0.01 | Q30: 3.056791056e-07 | R30: 0.03769441952 | S30: 0.6732949437 | T30: 2.821105814 | U30: =U16 -> 2 | V30: 0.7144770522 | W30: 1.428954104 | X30: 4.250059918
D31: Втор. гор. кусок | F31: 40 | H31: 17 | I31: =ИД!R64 -> 1440 | J31: 20 | K31: 72.18227848 | L31: =ИД!O79 -> 3.8 | M31: 32 | N31: 0.025701976 | O31: 2690.609913 | P31: 0.01 | Q31: 3.056791056e-07 | R31: 0.04399380266 | S31: 0.4404699551 | T31: 1.673785829 | U31: =ИД!R80 -> 2 | V31: 0.3203869116 | W31: 0.6407738231 | X31: 2.314559652
D32: Стояк | F32: 20 | H32: 19 | I32: =I31 -> 1440 | J32: 20 | K32: 72.18227848 | L32: =ИД!O81 -> 1.75 | M32: 15 | N32: 0.1169725485 | O32: 5739.967815 | P32: 0.01 | Q32: 3.056791056e-07 | R32: 0.03679058694 | S32: 16.27627805 | T32: 28.48348659 | U32: =ИД!R82 -> 2.16 | V32: 6.6360499 | W32: 14.33386778 | X32: 42.81735438
D33: Вход в радиатор | F33: 20 | H33: 21 | I33: =I31 -> 1440 | J33: 20 | K33: 72.18227848 | L33: =ИД!O83 -> 1 | M33: =M32 -> 15 | N33: 0.1169725485 | O33: 5739.967815 | P33: 0.01 | Q33: 3.056791056e-07 | R33: 0.03679058694 | S33: 16.27627805 | T33: 16.27627805 | U33: =ИД!R84 -> 1.5 | V33: 6.6360499 | W33: 9.95407485 | X33: 26.2303529
D34: РАДИАТОР
D35: Выход с радиатора | F35: =VLOOKUP(M35,$E$2:$F$7,2) -> 20 | H35: 23 | I35: =I31 -> 1440 | J35: 20 | K35: =I35*3600/($N$6*J35)*$N$1*$N$2 -> 72.18227848 | L35: =ИД!O85 -> 0.2 | M35: 15 | N35: =(K35/$L$8/3600)/(PI()*(M35/1000)^2/4) -> 0.1169725485 | O35: =N35*(M35/1000)/Q35 -> 5739.967815 | P35: 0.01 | Q35: =(1.78*10^(-6))/(1+0.0337*$H$6+0.000221*$H$6^2) -> 3.056791056e-07 | R35: =(P35/M35+68/O35)^0.25*0.11 -> 0.03679058694 | S35: =(R35*N35^2*$L$8)/((M35/1000)*2) -> 16.27627805 | T35: =S35*L35 -> 3.255255611 | U35: =ИД!R86 -> 1.16 | V35: =N35^2*$L$8/2 -> 6.6360499 | W35: =U35*V35 -> 7.697817884 | X35: =W35+T35 -> 10.95307349
D36: Верт. перемычка | F36: 20 | H36: 25 | I36: =I31 -> 1440 | J36: 20 | K36: 72.18227848 | L36: =ИД!O87 -> 0.1 | M36: =M35 -> 15 | N36: 0.1169725485 | O36: 5739.967815 | P36: 0.01 | Q36: 3.056791056e-07 | R36: 0.03679058694 | S36: 16.27627805 | T36: 1.627627805 | U36: =ИД!R88 -> 3 | V36: 6.6360499 | W36: 19.9081497 | X36: 21.5357775
D37: Втор. лежак | F37: 40 | H37: 27 | I37: =I31 -> 1440 | J37: 20 | K37: 72.18227848 | L37: =ИД!O89 -> 3.46 | M37: =M31 -> 32 | N37: 0.025701976 | O37: 2690.609913 | P37: 0.01 | Q37: 3.056791056e-07 | R37: 0.04399380266 | S37: 0.4404699551 | T37: 1.524026045 | U37: =ИД!R90 -> 2 | V37: 0.3203869116 | W37: 0.6407738231 | X37: 2.164799868
D38: Первый лежак до слиян | F38: 50 | H38: 14.1 | I38: =I22 -> 1470 | J38: 20 | K38: 73.68607595 | L38: =L22 -> 2.42 | M38: 40 | N38: 0.01679195765 | O38: 2197.331429 | P38: 0.01 | Q38: 3.056791056e-07 | R38: 0.04622954312 | S38: 0.1580534606 | T38: 0.3824893747 | U38: =U22 -> 3 | V38: 0.1367553733 | W38: 0.4102661198 | X38: 0.7927554945
D39: Первый лежак после слиян | F39: 50 | H39: 15 | I39: =I23 -> 7200 | J39: 20 | K39: 360.9113924 | L39: 1.5 | M39: 40 | N39: 0.0822463232 | O39: 10762.43965 | P39: 0.01 | Q39: 3.056791056e-07 | R39: 0.03131521769 | S39: 2.568444385 | T39: 3.852666578 | U39: =U23 -> 0 | V39: 3.280761974 | W39: 0 | X39: 3.852666578
D40: Вход в котел | F40: 50 | H40: 16 | I40: =I24 -> 7200 | J40: 20 | K40: 360.9113924 | L40: 0.1 | M40: 40 | N40: 0.0822463232 | O40: 10762.43965 | P40: 0.01 | Q40: 3.056791056e-07 | R40: 0.03131521769 | S40: 2.568444385 | T40: 0.2568444385 | U40: =U24 -> 2.5 | V40: 3.280761974 | W40: 8.201904936 | X40: 8.458749374
X41: =SUM(X27:X40) -> 152.9946008
G42: ЦК3
D43: Выход с котла | F43: =VLOOKUP(M43,$E$2:$F$7,2) -> 50 | H43: 1 | I43: =I13 -> 7200 | J43: 20 | K43: =I43*3600/($N$6*J43)*$N$1*$N$2 -> 360.9113924 | L43: =L13 -> 0.1 | M43: =M13 -> 40 | N43: =(K43/$L$8/3600)/(PI()*(M43/1000)^2/4) -> 0.0822463232 | O43: =N43*(M43/1000)/Q43 -> 10762.43965 | P43: 0.01 | Q43: =(1.78*10^(-6))/(1+0.0337*$H$6+0.000221*$H$6^2) -> 3.056791056e-07 | R43: =(P43/M43+68/O43)^0.25*0.11 -> 0.03131521769 | S43: =(R43*N43^2*$L$8)/((M43/1000)*2) -> 2.568444385 | T43: =S43*L43 -> 0.2568444385 | U43: =U13 -> 1.7 | V43: =N43^2*$L$8/2 -> 3.280761974 | W43: =U43*V43 -> 5.577295356 | X43: =W43+T43 -> 5.834139795
D44: Гл. стояк | F44: 50 | H44: 3 | I44: =I14 -> 7200 | J44: 20 | K44: 360.9113924 | L44: =L14 -> 1.9 | M44: =M14 -> 40 | N44: 0.0822463232 | O44: 10762.43965 | P44: 0.01 | Q44: 3.056791056e-07 | R44: 0.03131521769 | S44: 2.568444385 | T44: 4.880044332 | U44: =U14 -> 2.3 | V44: 3.280761974 | W44: 7.545752541 | X44: 12.42579687
D45: Первый гор. кусок до разд | F45: 50 | H45: 5 | I45: =I31 -> 1440 | J45: 20 | K45: 72.18227848 | L45: =L31 -> 3.8 | M45: =M15 -> 40 | N45: 0.01644926464 | O45: 2152.487931 | P45: 0.01 | Q45: 3.056791056e-07 | R45: 0.04646656341 | S45: 0.1524457343 | T45: 0.5792937904 | U45: =U15 -> 2 | V45: 0.131230479 | W45: 0.2624609579 | X45: 0.8417547483
D46: Первый гор. кусок после разд. | F46: 50 | H46: 5.2 | I46: =I32 -> 1440 | J46: 20 | K46: 72.18227848 | L46: =L32 -> 1.75 | M46: =M16 -> 40 | N46: 0.01644926464 | O46: 2152.487931 | P46: 0.01 | Q46: 3.056791056e-07 | R46: 0.04646656341 | S46: 0.1524457343 | T46: 0.266780035 | U46: =U16 -> 2 | V46: 0.131230479 | W46: 0.2624609579 | X46: 0.529240993
D47: Втор. гор. кусок | F47: 40 | H47: 17 | I47: =I31 -> 1440 | J47: 20 | K47: 72.18227848 | L47: =L31 -> 3.8 | M47: =M31 -> 32 | N47: 0.025701976 | O47: 2690.609913 | P47: 0.01 | Q47: 3.056791056e-07 | R47: 0.04399380266 | S47: 0.4404699551 | T47: 1.673785829 | U47: =U31 -> 2 | V47: 0.3203869116 | W47: 0.6407738231 | X47: 2.314559652
D48: Третий гор. кусок | H48: 28 | I48: =ИД!R98 -> 450 | J48: 20 | K48: 22.55696203 | L48: =ИД!O115 -> 3.97 | M48: 10 | N48: 0.0822463232 | O48: 2690.609913 | P48: 0.01 | Q48: 3.056791056e-07 | R48: 0.04428640556 | S48: 14.52931553 | T48: 57.68138267 | U48: =ИД!R116 -> 0.9 | V48: 3.280761974 | W48: 2.952685777 | X48: 60.63406845
D49: Стояк | H49: 30 | I49: =I48 -> 450 | J49: 20 | K49: 22.55696203 | L49: =ИД!O117 -> 1.7 | M49: 10 | N49: 0.0822463232 | O49: 2690.609913 | P49: 0.01 | Q49: 3.056791056e-07 | R49: 0.04428640556 | S49: 14.52931553 | T49: 24.69983641 | U49: =ИД!R118 -> 2.16 | V49: 3.280761974 | W49: 7.086445865 | X49: 31.78628227
D50: Вход в радиатор | H50: 32 | I50: =I48 -> 450 | J50: 20 | K50: 22.55696203 | L50: =ИД!O119 -> 0.1 | M50: =M49 -> 10 | N50: 0.0822463232 | O50: 2690.609913 | P50: 0.01 | Q50: 3.056791056e-07 | R50: 0.04428640556 | S50: 14.52931553 | T50: 1.452931553 | U50: =ИД!R120 -> 1.5 | V50: 3.280761974 | W50: 4.921142962 | X50: 6.374074515
D51: РАДИАТОР
D52: Выход с радиатора | F52: =VLOOKUP(M52,$E$2:$F$7,2) ->  | H52: 34 | I52: =I48 -> 450 | J52: 20 | K52: =I52*3600/($N$6*J52)*$N$1*$N$2 -> 22.55696203 | L52: =ИД!O121 -> 0 | M52: =M49 -> 10 | N52: =(K52/$L$8/3600)/(PI()*(M52/1000)^2/4) -> 0.0822463232 | O52: =N52*(M52/1000)/Q52 -> 2690.609913 | P52: 0.01 | Q52: =(1.78*10^(-6))/(1+0.0337*$H$6+0.000221*$H$6^2) -> 3.056791056e-07 | R52: =(P52/M52+68/O52)^0.25*0.11 -> 0.04428640556 | S52: =(R52*N52^2*$L$8)/((M52/1000)*2) -> 14.52931553 | T52: =S52*L52 -> 0 | U52: =ИД!R122 -> 1.16 | V52: =N52^2*$L$8/2 -> 3.280761974 | W52: =U52*V52 -> 3.80568389 | X52: =W52+T52 -> 3.80568389
D53: Верт. перемычка | H53: 36 | I53: =I48 -> 450 | J53: 20 | K53: 22.55696203 | L53: =ИД!O123 -> 0.2 | M53: =M49 -> 10 | N53: 0.0822463232 | O53: 2690.609913 | P53: 0.01 | Q53: 3.056791056e-07 | R53: 0.04428640556 | S53: 14.52931553 | T53: 2.905863107 | U53: =ИД!R124 -> 0.9 | V53: 3.280761974 | W53: 2.952685777 | X53: 5.858548884
D54: Третий лежак | H54: 38 | I54: =I48 -> 450 | J54: 20 | K54: 22.55696203 | L54: =ИД!O125 -> 6.26 | M54: =M48 -> 10 | N54: 0.0822463232 | O54: 2690.609913 | P54: 0.01 | Q54: 3.056791056e-07 | R54: 0.04428640556 | S54: 14.52931553 | T54: 90.95351524 | U54: =ИД!R126 -> 2 | V54: 3.280761974 | W54: 6.561523949 | X54: 97.51503919
D55: Втор. лежак | F55: 40 | H55: 27 | I55: =I37 -> 1440 | J55: 20 | K55: 72.18227848 | L55: =L37 -> 3.46 | M55: =M37 -> 32 | N55: 0.025701976 | O55: 2690.609913 | P55: 0.01 | Q55: 3.056791056e-07 | R55: 0.04399380266 | S55: 0.4404699551 | T55: 1.524026045 | U55: =U37 -> 2 | V55: 0.3203869116 | W55: 0.6407738231 | X55: 2.164799868
D56: Первый лежак до слиян | F56: 50 | H56: 14.1 | I56: =I22 -> 1470 | J56: 20 | K56: 73.68607595 | L56: =L22 -> 2.42 | M56: 40 | N56: 0.01679195765 | O56: 2197.331429 | P56: 0.01 | Q56: 3.056791056e-07 | R56: 0.04622954312 | S56: 0.1580534606 | T56: 0.3824893747 | U56: =U22 -> 3 | V56: 0.1367553733 | W56: 0.4102661198 | X56: 0.7927554945
D57: Первый лежак после слиян | F57: 50 | H57: 15 | I57: =I23 -> 7200 | J57: 20 | K57: 360.9113924 | L57: 1.5 | M57: 40 | N57: 0.0822463232 | O57: 10762.43965 | P57: 0.01 | Q57: 3.056791056e-07 | R57: 0.03131521769 | S57: 2.568444385 | T57: 3.852666578 | U57: =U23 -> 0 | V57: 3.280761974 | W57: 0 | X57: 3.852666578
D58: Вход в котел | F58: 50 | H58: 16 | I58: =I24 -> 7200 | J58: 20 | K58: 360.9113924 | L58: 0.1 | M58: 40 | N58: 0.0822463232 | O58: 10762.43965 | P58: 0.01 | Q58: 3.056791056e-07 | R58: 0.03131521769 | S58: 2.568444385 | T58: 0.2568444385 | U58: =U24 -> 2.5 | V58: 3.280761974 | W58: 8.201904936 | X58: 8.458749374
X59: =SUM(X43:X58) -> 243.1881606

Sheet Остывание
T1: Теплоотд. ППР Гор dT 70 гр | V1: По формуле | AA1: Теплоотд. Сталь Гор dT 70 гр
Q2: Ду | R2: Днар | S2: Тст | V2: 0.2 | X2: Ду | Y2: Днар | Z2: Тст
Q3: =R3-S3*2 -> 13.2 | R3: 20 | S3: 3.4 | T3: 55.9 | V3: =(3.14*70)/((1/14*R3)+(1.15/$V$2)+LOG10(R3/Q3)+(1/1000*Q3)) -> 29.81459813 | X3: 10 | Y3: 17 | Z3: =(Y3-X3)/2 -> 3.5 | AA3: 63
X4: 15 | Y4: 21.3 | Z4: 3.15 | AA4: 77
X5: 20 | Y5: 26.8 | Z5: 3.4 | AA5: 93
Q6: 16.6 | R6: 25 | S6: 4.2 | T6: 66.4 | V6: 28.43413231 | X6: 25 | Y6: 33.5 | Z6: =(Y6-X6)/2 -> 4.25 | AA6: 113
Q7: 21.2 | R7: 32 | S7: 5.4 | T7: 78.9 | V7: 26.68859259 | X7: 32 | Y7: 42.3 | Z7: 5.15 | AA7: 138
Q8: 26.6 | R8: 40 | S8: 6.7 | T8: 91.6 | V8: 24.94631319 | X8: 40 | Y8: 48 | Z8: 4 | AA8: 155
Q9: 33.4 | R9: 50 | S9: 8.3 | T9: 105.3 | V9: 23.06388228 | X9: 50 | Y9: 60 | Z9: 5 | AA9: 187
Q10: 42 | R10: 63 | S10: 10.5 | T10: 119.4 | V10: 20.99714213 | X10: 65 | Y10: 75.5 | Z10: 5.25 | AA10: 200
Z12: ППР — 0,2, Сталь — 50 — уменьшено для соотв. эмпирическим
I13: =ИД!L27 -> 90
D14: d | E14: Тип Тр. | F14: q | G14: l | H14: G | I14: tн | J14: Q | K14: Δt | L14: dn | N14: hi | O14: hi*dt | X14: Тизол | Y14: Кизол | Z14: Ктр | AA14: dтр1 | AB14: dтр2 | AC14: Rтр | AD14: d1 | AE14: d2 | AF14: Rизол | AG14: a | AH14: Rто | AI14: R | AJ14: Tв | AK14: q | AL14: Q | AM14: Gм | AN14: Tг_нач | AO14: dТ | AP14: Tг_кон
C15: ЦК1
C16: =ГР_Предв!H13 -> 1 | D16: =ГР_Предв!M13 -> 40 | E16: СТАЛЬ | F16: =IF(E16="ППР",VLOOKUP(D16,$Q$3:$T$10,4),VLOOKUP(D16,$X$3:$AA$10,4)) -> 155 | G16: =ГР_Предв!L13 -> 0.1 | H16: =ГР_Предв!K13/3600 -> 0.1002531646 | I16: =I13 -> 90 | J16: =(F16*G16) -> 15.5 | K16: =J16/(H16*4187) -> 0.0369258624 | L16: =ГР_Предв!F13 -> 50 | N16: =ИД!B14/2 -> 0.26 | O16: =N16*K16 -> 0.009600724223 | X16: 0 | Y16: 0.036 | Z16: =IF(E16="ППР",0.12,58) -> 58 | AA16: =D16/1000 -> 0.04 | AB16: =AD16 -> 0.05 | AC16: =1/(2*PI()*Z16)*LN(AB16/AA16) -> 0.0006123172278 | AD16: =L16/1000 -> 0.05 | AE16: =AD16+X16/1000 -> 0.05 | AF16: =1/(2*PI()*Y16)*LN(AE16/AD16) -> 0 | AG16: =10.3+0.052*(AN16-AJ16) -> 13.94 | AH16: =1/AG16 -> 0.07173601148 | AI16: =AH16+AF16+AC16 -> 0.07234832871 | AJ16: 20 | AK16: =(AN16-AJ16)/AI16 -> 967.5413552 | AL16: =AK16*G16 -> 96.75413552 | AM16: =H16 -> 0.1002531646 | AN16: 90 | AO16: =AL16/(AM16*4187) -> 0.2304987029 | AP16: =AN16-AO16 -> 89.7695013
C17: =ГР_Предв!H14 -> 3 | D17: =ГР_Предв!M14 -> 40 | E17: СТАЛЬ | F17: 155 | G17: =ГР_Предв!L14 -> 1.9 | H17: =ГР_Предв!K14/3600 -> 0.1002531646 | I17: =I16-K16 -> 89.96307414 | J17: 294.5 | K17: 0.7015913856 | L17: =ГР_Предв!F14 -> 50 | N17: =ИД!B14/2+ИД!H13/2 -> 1.21 | O17: 0.8489255765 | X17: 0 | Y17: 0.036 | Z17: =IF(E17="ППР",0.12,58) -> 58 | AA17: =D17/1000 -> 0.04 | AB17: =AD17 -> 0.05 | AC17: =1/(2*PI()*Z17)*LN(AB17/AA17) -> 0.0006123172278 | AD17: =L17/1000 -> 0.05 | AE17: =AD17+X17/1000 -> 0.05 | AF17: =1/(2*PI()*Y17)*LN(AE17/AD17) -> 0 | AG17: =10.3+0.052*(AN17-AJ17) -> 13.93807986 | AH17: =1/AG17 -> 0.07174589401 | AI17: =AH17+AF17+AC17 -> 0.07235821124 | AJ17: 20 | AK17: =(AN17-AJ17)/AI17 -> 966.8988901 | AL17: =AK17*G17 -> 1837.107891 | AM17: 0.1002531646 | AN17: 89.96307414 | AO17: =AL17/(AM17*4187) -> 4.376567303 | AP17: =AN17-AO17 -> 85.58650683
C18: =ГР_Предв!H15 -> 5 | D18: =ГР_Предв!M15 -> 40 | E18: СТАЛЬ | F18: 155 | G18: =ГР_Предв!L15 -> 1.87 | H18: =ГР_Предв!K15/3600 -> 0.1002531646 | I18: =I17-K17 -> 89.26148275 | J18: 289.85 | K18: 0.6905136268 | L18: =ГР_Предв!F15 -> 50 | N18: =ИД!B14/2+ИД!H13 -> 2.16 | O18: 1.491509434 | X18: 0 | Y18: 0.036 | Z18: =IF(E18="ППР",0.12,58) -> 58 | AA18: =D18/1000 -> 0.04 | AB18: =AD18 -> 0.05 | AC18: =1/(2*PI()*Z18)*LN(AB18/AA18) -> 0.0006123172278 | AD18: =L18/1000 -> 0.05 | AE18: =AD18+X18/1000 -> 0.05 | AF18: =1/(2*PI()*Y18)*LN(AE18/AD18) -> 0 | AG18: =10.3+0.052*(AN18-AJ18) -> 13.9015971 | AH18: =1/AG18 -> 0.07193418084 | AI18: =AH18+AF18+AC18 -> 0.07254649807 | AJ18: 20 | AK18: =(AN18-AJ18)/AI18 -> 954.7184853 | AL18: =AK18*G18 -> 1785.323568 | AM18: 0.1002531646 | AN18: 89.26148275 | AO18: =AL18/(AM18*4187) -> 4.253200799 | AP18: =AN18-AO18 -> 85.00828195
C19: =ГР_Предв!H16 -> 5.2 | D19: =ГР_Предв!M16 -> 40 | E19: СТАЛЬ | F19: 155 | G19: =ГР_Предв!L16 -> 4.19 | H19: =ГР_Предв!K16/3600 -> 0.04678481013 | I19: =I18-K18 -> 88.57096913 | J19: 649.45 | K19: 3.315414931 | L19: =ГР_Предв!F16 -> 50 | N19: =ИД!B14/2+ИД!H13 -> 2.16 | O19: 7.161296251
C20: =ГР_Предв!H17 -> 7 | D20: =ГР_Предв!M17 -> 20 | E20: СТАЛЬ | F20: 93 | G20: =ГР_Предв!L17 -> 1.79 | H20: =ГР_Предв!K17/3600 -> 0.02046835443 | I20: =I19-K19 -> 85.25555419 | J20: 166.47 | K20: 1.94245108 | L20: =ГР_Предв!F17 -> 25 | N20: =ИД!K16+ИД!R14/2+ИД!N13/2 -> 1.345 | O20: 2.612596702 | X20: 0 | Y20: 0.036 | Z20: =IF(E20="ППР",0.12,58) -> 58 | AA20: =D20/1000 -> 0.02 | AB20: =AD20 -> 0.025 | AC20: =1/(2*PI()*Z20)*LN(AB20/AA20) -> 0.0006123172278 | AD20: =L20/1000 -> 0.025 | AE20: =AD20+X20/1000 -> 0.025 | AF20: =1/(2*PI()*Y20)*LN(AE20/AD20) -> 0 | AG20: =10.3+0.052*(AN20-AJ20) -> 13.69328882 | AH20: =1/AG20 -> 0.07302847499 | AI20: =AH20+AF20+AC20 -> 0.07364079222 | AJ20: 20 | AK20: =(AN20-AJ20)/AI20 -> 886.1332453 | AL20: =AK20*G20 -> 1586.178509 | AM20: =H20 -> 0.02046835443 | AN20: =I20 -> 85.25555419 | AO20: =AL20/(AM20*4187) -> 18.50828472 | AP20: =AN20-AO20 -> 66.74726947
C21: =ГР_Предв!H18 -> 9 | D21: =ГР_Предв!M18 -> 20 | E21: СТАЛЬ | F21: 93 | G21: =ГР_Предв!L18 -> 0.75 | H21: =ГР_Предв!K18/3600 -> 0.02046835443 | I21: =I20-K20 -> 83.31310311 | J21: 69.75 | K21: 0.8138761508 | L21: =ГР_Предв!F18 -> 25 | N21: =ИД!K16+ИД!R14/2 -> 0.45 | O21: 0.3662442679 | X21: 0 | Y21: 0.036 | Z21: =IF(E21="ППР",0.12,58) -> 58 | AA21: =D21/1000 -> 0.02 | AB21: =AD21 -> 0.025 | AC21: =1/(2*PI()*Z21)*LN(AB21/AA21) -> 0.0006123172278 | AD21: =L21/1000 -> 0.025 | AE21: =AD21+X21/1000 -> 0.025 | AF21: =1/(2*PI()*Y21)*LN(AE21/AD21) -> 0 | AG21: =10.3+0.052*(AN21-AJ21) -> 13.59228136 | AH21: =1/AG21 -> 0.07357116685 | AI21: =AH21+AF21+AC21 -> 0.07418348408 | AJ21: 20 | AK21: =(AN21-AJ21)/AI21 -> 853.4662924 | AL21: =AK21*G21 -> 640.0997193 | AM21: =H21 -> 0.02046835443 | AN21: =I21 -> 83.31310311 | AO21: =AL21/(AM21*4187) -> 7.468987751 | AP21: =AN21-AO21 -> 75.84411536
A22: Qтруб | B22: =SUM(J19:J21,J23:J25)*0.9 -> 1159.803 | C22: РАДИАТОР 1 | E22: Qрад | F22: =ИД!R34-B22 -> 310.197 | G22: Ср.Т. | H22: =I21-(J22*ГР_Предв!$N$1*ГР_Предв!$N$2)/(2*4187*H21) -> 79.61242284 | J22: 544 | K22: =(I21-L22) -> 7.401360544 | L22: =I21-(J22*ГР_Предв!$N$1*ГР_Предв!$N$2)/(4187*H21) -> 75.91174257 | N22: =ИД!K16 -> 0.2 | O22: 1.480272109
C23: =ГР_Предв!H20 -> 11 | D23: =ГР_Предв!M20 -> 20 | E23: СТАЛЬ | F23: =IF(E23="ППР",VLOOKUP(D23,$Q$3:$T$10,4),VLOOKUP(D23,$X$3:$AA$10,4)) -> 93 | G23: =ГР_Предв!L20 -> 0.2 | H23: =ГР_Предв!K20/3600 -> 0.02046835443 | I23: =L22 -> 75.91174257 | J23: =(F23*G23) -> 18.6 | K23: =J23/(H23*4187) -> 0.2170336402 | L23: =ГР_Предв!F20 -> 25 | N23: =ИД!K16-ИД!R14/2 -> -0.05 | O23: -0.01085168201 | X23: 20 | Y23: 0.036 | Z23: =IF(E23="ППР",0.12,58) -> 58 | AA23: =D23/1000 -> 0.02 | AB23: =AD23 -> 0.025 | AC23: =1/(2*PI()*Z23)*LN(AB23/AA23) -> 0.0006123172278 | AD23: =L23/1000 -> 0.025 | AE23: =AD23+X23/1000 -> 0.045 | AF23: =1/(2*PI()*Y23)*LN(AE23/AD23) -> 2.598587589 | AG23: =10.3+0.052*(AN23-AJ23) -> 13.20741061 | AH23: =1/AG23 -> 0.07571506855 | AI23: =AH23+AF23+AC23 -> 2.674914975 | AJ23: 20 | AK23: =(AN23-AJ23)/AI23 -> 20.90225039 | AL23: =AK23*G23 -> 4.180450078 | AM23: =H23 -> 0.02046835443 | AN23: =I23 -> 75.91174257 | AO23: =AL23/(AM23*4187) -> 0.04877947839 | AP23: =AN23-AO23 -> 75.86296309
C24: =ГР_Предв!H21 -> 13 | D24: =ГР_Предв!M21 -> 20 | E24: СТАЛЬ | F24: =IF(E24="ППР",VLOOKUP(D24,$Q$3:$T$10,4),VLOOKUP(D24,$X$3:$AA$10,4)) -> 93 | G24: =ГР_Предв!L21 -> 0.1 | H24: =ГР_Предв!K21/3600 -> 0.02046835443 | I24: =I23-K23 -> 75.69470893 | J24: =(F24*G24) -> 9.3 | K24: =J24/(H24*4187) -> 0.1085168201 | L24: =ГР_Предв!F21 -> 25 | N24: =ИД!K16-ИД!R14/2-ИД!N19/2 -> -0.1 | O24: -0.01085168201 | X24: 20 | Y24: 0.036 | Z24: =IF(E24="ППР",0.12,58) -> 58 | AA24: =D24/1000 -> 0.02 | AB24: =AD24 -> 0.025 | AC24: =1/(2*PI()*Z24)*LN(AB24/AA24) -> 0.0006123172278 | AD24: =L24/1000 -> 0.025 | AE24: =AD24+X24/1000 -> 0.045 | AF24: =1/(2*PI()*Y24)*LN(AE24/AD24) -> 2.598587589 | AG24: =10.3+0.052*(AN24-AJ24) -> 13.19612486 | AH24: =1/AG24 -> 0.07577982251 | AI24: =AH24+AF24+AC24 -> 2.674979729 | AJ24: 20 | AK24: =(AN24-AJ24)/AI24 -> 20.82060972 | AL24: =AK24*G24 -> 2.082060972 | AM24: =H24 -> 0.02046835443 | AN24: =I24 -> 75.69470893 | AO24: =AL24/(AM24*4187) -> 0.02429447698 | AP24: =AN24-AO24 -> 75.67041445
C25: =ГР_Предв!H22 -> 14.1 | D25: =ГР_Предв!M22 -> 40 | E25: СТАЛЬ | F25: =IF(E25="ППР",VLOOKUP(D25,$Q$3:$T$10,4),VLOOKUP(D25,$X$3:$AA$10,4)) -> 155 | G25: =ГР_Предв!L22 -> 2.42 | H25: =ГР_Предв!K22/3600 -> 0.02046835443 | I25: =I24-K24 -> 75.58619211 | J25: =(F25*G25) -> 375.1 | K25: =J25/(H25*4187) -> 4.376845078 | L25: =ГР_Предв!F22 -> 50 | N25: =ИД!K16-ИД!R14/2-ИД!N19 -> -0.15 | O25: -0.6565267616
C26: =ГР_Предв!H23 -> 15 | D26: =ГР_Предв!M23 -> 40 | E26: СТАЛЬ | F26: =IF(E26="ППР",VLOOKUP(D26,$Q$3:$T$10,4),VLOOKUP(D26,$X$3:$AA$10,4)) -> 155 | G26: =ГР_Предв!L23 -> 1.5 | H26: =ГР_Предв!K23/3600 -> 0.1002531646 | I26: =I24-K24 -> 75.58619211 | J26: =(F26*G26) -> 232.5 | K26: =J26/(H26*4187) -> 0.553887936 | L26: =ГР_Предв!F23 -> 50 | N26: =ИД!K16-ИД!R14/2-ИД!N19 -> -0.15 | O26: -0.08308319039 | T26: НЕВЯЗКА | U26: =1-O28/U28 -> -0.08732188087 | X26: 20 | Y26: 0.036 | Z26: =IF(E26="ППР",0.12,58) -> 58 | AA26: =D26/1000 -> 0.04 | AB26: =AD26 -> 0.05 | AC26: =1/(2*PI()*Z26)*LN(AB26/AA26) -> 0.0006123172278 | AD26: =L26/1000 -> 0.05 | AE26: =AD26+X26/1000 -> 0.07 | AF26: =1/(2*PI()*Y26)*LN(AE26/AD26) -> 1.48753388 | AG26: =10.3+0.052*(AN26-AJ26) -> 13.19048199 | AH26: =1/AG26 -> 0.07581224104 | AI26: =AH26+AF26+AC26 -> 1.563958438 | AJ26: 20 | AK26: =(AN26-AJ26)/AI26 -> 35.54198805 | AL26: =AK26*G26 -> 53.31298207 | AM26: =H26 -> 0.1002531646 | AN26: =I26 -> 75.58619211 | AO26: =AL26/(AM26*4187) -> 0.1270082477 | AP26: =AN26-AO26 -> 75.45918386
C27: =ГР_Предв!H24 -> 16 | D27: =ГР_Предв!M24 -> 40 | E27: СТАЛЬ | F27: =IF(E27="ППР",VLOOKUP(D27,$Q$3:$T$10,4),VLOOKUP(D27,$X$3:$AA$10,4)) -> 155 | G27: =ГР_Предв!L24 -> 0.1 | H27: =ГР_Предв!K24/3600 -> 0.1002531646 | I27: =I26-K26 -> 75.03230417 | J27: =(F27*G27) -> 15.5 | K27: =J27/(H27*4187) -> 0.0369258624 | L27: =ГР_Предв!F24 -> 50 | N27: =ИД!K16-ИД!R14/2-ИД!N19 -> -0.15 | O27: -0.00553887936 | X27: 20 | Y27: 0.036 | Z27: =IF(E27="ППР",0.12,58) -> 58 | AA27: =D27/1000 -> 0.04 | AB27: =AD27 -> 0.05 | AC27: =1/(2*PI()*Z27)*LN(AB27/AA27) -> 0.0006123172278 | AD27: =L27/1000 -> 0.05 | AE27: =AD27+X27/1000 -> 0.07 | AF27: =1/(2*PI()*Y27)*LN(AE27/AD27) -> 1.48753388 | AG27: =10.3+0.052*(AN27-AJ27) -> 13.16167982 | AH27: =1/AG27 -> 0.07597814366 | AI27: =AH27+AF27+AC27 -> 1.564124341 | AJ27: 20 | AK27: =(AN27-AJ27)/AI27 -> 35.18409806 | AL27: =AK27*G27 -> 3.518409806 | AM27: =H27 -> 0.1002531646 | AN27: =I27 -> 75.03230417 | AO27: =AL27/(AM27*4187) -> 0.008381955893 | AP27: =AN27-AO27 -> 75.02392222
B28: Остывание: | K28: =I16-I27 -> 14.96769583 | L28: 0С | M28: Действительное ЕЦД: | O28: =SUM(O16:O27)*ИД!$L$29*9.81 -> 82.89743747 | P28: Па | T28: Потери: | U28: =ГР_Предв!X25 -> 76.24001589 | V28: Па
C29: ЦК2
C30: =ГР_Предв!H27 -> 1 | D30: =ГР_Предв!M27 -> 40 | E30: СТАЛЬ | F30: =IF(E30="ППР",VLOOKUP(D30,$Q$3:$T$10,4),VLOOKUP(D30,$X$3:$AA$10,4)) -> 155 | G30: =ГР_Предв!L27 -> 0.1 | H30: =ГР_Предв!K27/3600 -> 0.1002531646 | I30: =I13 -> 90 | J30: =(F30*G30) -> 15.5 | K30: =J30/(H30*4187) -> 0.0369258624 | L30: =ГР_Предв!F27 -> 50 | N30: =N16 -> 0.26 | O30: =N30*K30 -> 0.009600724223
C31: =ГР_Предв!H28 -> 3 | D31: =ГР_Предв!M28 -> 40 | E31: СТАЛЬ | F31: 155 | G31: =ГР_Предв!L28 -> 1.9 | H31: =ГР_Предв!K28/3600 -> 0.1002531646 | I31: =I30-K30 -> 89.96307414 | J31: 294.5 | K31: 0.7015913856 | L31: =ГР_Предв!F28 -> 50 | N31: =N17 -> 1.21 | O31: 0.8489255765
C32: =ГР_Предв!H29 -> 5 | D32: =ГР_Предв!M29 -> 40 | E32: СТАЛЬ | F32: 155 | G32: =ГР_Предв!L29 -> 1.87 | H32: =ГР_Предв!K29/3600 -> 0.1002531646 | I32: 89.26148275 | J32: 289.85 | K32: 0.6905136268 | L32: =ГР_Предв!F29 -> 50 | N32: =N18 -> 2.16 | O32: 1.491509434
C33: =ГР_Предв!H30 -> 5.2 | D33: =ГР_Предв!M30 -> 40 | E33: СТАЛЬ | F33: 155 | G33: =ГР_Предв!L30 -> 4.19 | H33: =ГР_Предв!K30/3600 -> 0.04678481013 | I33: 88.57096913 | J33: 649.45 | K33: 3.315414931 | L33: =ГР_Предв!F30 -> 50 | N33: =N19 -> 2.16 | O33: 7.161296251
C34: =ГР_Предв!H31 -> 17 | D34: =ГР_Предв!M31 -> 32 | E34: СТАЛЬ | F34: 138 | G34: =ГР_Предв!L31 -> 3.8 | H34: =ГР_Предв!K31/3600 -> 0.02005063291 | I34: 85.25555419 | J34: 524.4 | K34: 6.246426529 | L34: =ГР_Предв!F31 -> 40 | N34: =ИД!B14/2+ИД!H13 -> 2.16 | O34: 13.4922813
C35: =ГР_Предв!H32 -> 19 | D35: =ГР_Предв!M32 -> 15 | E35: СТАЛЬ | F35: 77 | G35: =ГР_Предв!L32 -> 1.75 | H35: =ГР_Предв!K32/3600 -> 0.02005063291 | I35: 79.00912766 | J35: 134.75 | K35: 1.605083857 | L35: =ГР_Предв!F32 -> 20 | N35: =ИД!K16+ИД!R14/2+ИД!T13/2 -> 1.325 | O35: 2.126736111
C36: =ГР_Предв!H33 -> 21 | D36: =ГР_Предв!M33 -> 15 | E36: СТАЛЬ | F36: 77 | G36: =ГР_Предв!L33 -> 1 | H36: =ГР_Предв!K33/3600 -> 0.02005063291 | I36: 77.40404381 | J36: 77 | K36: 0.9171907757 | L36: =ГР_Предв!F33 -> 20 | N36: =ИД!K16+ИД!R14/2 -> 0.45 | O36: 0.4127358491
A37: Qтруб | B37: =SUM(J34:J36,J38:J40)*0.9 -> 1113.057 | C37: РАДИАТОР 2 | E37: Qрад | F37: =ИД!R64-B37 -> 326.943 | G37: Ср.Т. | H37: =I36-(J37*ГР_Предв!$N$1*ГР_Предв!$N$2)/(2*4187*H36) -> 73.62626603 | J37: 544 | K37: =I36-L37 -> 7.555555556 | L37: =I36-(J37*ГР_Предв!$N$1*ГР_Предв!$N$2)/(4187*H36) -> 69.84848825 | N37: =N22 -> 0.2 | O37: 1.511111111
C38: =ГР_Предв!H35 -> 23 | D38: =ГР_Предв!M35 -> 15 | E38: СТАЛЬ | F38: =IF(E38="ППР",VLOOKUP(D38,$Q$3:$T$10,4),VLOOKUP(D38,$X$3:$AA$10,4)) -> 77 | G38: =ГР_Предв!L35 -> 0.2 | H38: =ГР_Предв!K35/3600 -> 0.02005063291 | I38: =L37 -> 69.84848825 | J38: =(F38*G38) -> 15.4 | K38: =J38/(H38*4187) -> 0.1834381551 | L38: =ГР_Предв!F35 -> 20 | N38: =ИД!K16-ИД!R14/2 -> -0.05 | O38: -0.009171907757
C39: =ГР_Предв!H36 -> 25 | D39: =ГР_Предв!M36 -> 15 | E39: СТАЛЬ | F39: 77 | G39: =ГР_Предв!L36 -> 0.1 | H39: =ГР_Предв!K36/3600 -> 0.02005063291 | I39: =I38-K38 -> 69.6650501 | J39: 7.7 | K39: 0.09171907757 | L39: =ГР_Предв!F36 -> 20 | N39: =ИД!K16-ИД!R14/2-ИД!T19/2 -> -0.1 | O39: -0.009171907757
C40: =ГР_Предв!H37 -> 27 | D40: =ГР_Предв!M37 -> 32 | E40: СТАЛЬ | F40: 138 | G40: =ГР_Предв!L37 -> 3.46 | H40: =ГР_Предв!K37/3600 -> 0.02005063291 | I40: =I39-K39 -> 69.57333102 | J40: 477.48 | K40: 5.687535735 | L40: =ГР_Предв!F37 -> 40 | N40: =ИД!K16-ИД!R14/2-ИД!T19 -> -0.15 | O40: -0.8531303602
C41: =ГР_Предв!H38 -> 14.1 | D41: =ГР_Предв!M38 -> 40 | E41: СТАЛЬ | F41: 155 | G41: =ГР_Предв!L38 -> 2.42 | H41: =ГР_Предв!K38/3600 -> 0.02046835443 | I41: =I40-K40 -> 63.88579528 | J41: 375.1 | K41: 4.376845078 | L41: =ГР_Предв!F38 -> 50 | N41: =N25 -> -0.15 | O41: -0.6565267616 | T41: НЕВЯЗКА | U41: =1-O44/U44 -> -0.04387514154
C42: =ГР_Предв!H39 -> 15 | D42: =ГР_Предв!M39 -> 40 | E42: СТАЛЬ | F42: 155 | G42: =ГР_Предв!L39 -> 1.5 | H42: =ГР_Предв!K39/3600 -> 0.1002531646 | I42: =I41-K41 -> 59.50895021 | J42: 232.5 | K42: 0.553887936 | L42: =ГР_Предв!F39 -> 50 | N42: =N26 -> -0.15 | O42: -0.08308319039
C43: =ГР_Предв!H40 -> 16 | D43: =ГР_Предв!M40 -> 40 | E43: СТАЛЬ | F43: 155 | G43: =ГР_Предв!L40 -> 0.1 | H43: =ГР_Предв!K40/3600 -> 0.1002531646 | I43: =I42-K42 -> 58.95506227 | J43: 15.5 | K43: 0.0369258624 | L43: =ГР_Предв!F40 -> 50 | N43: =N27 -> -0.15 | O43: -0.00553887936
B44: Остывание: | K44: =I30-I42 -> 30.49104979 | L44: 0С | M44: Действительное ЕЦД: | O44: =SUM(O30:O43)*ИД!$L$29*9.81 -> 159.7072605 | P44: Па | T44: Потери: | U44: =ГР_Предв!X41 -> 152.9946008 | V44: Па
C45: ЦК3
C46: =ГР_Предв!H43 -> 1 | D46: =ГР_Предв!M43 -> 40 | E46: СТАЛЬ | F46: =IF(E46="ППР",VLOOKUP(D46,$Q$3:$T$10,4),VLOOKUP(D46,$X$3:$AA$10,4)) -> 155 | G46: =ГР_Предв!L43 -> 0.1 | H46: =ГР_Предв!K43/3600 -> 0.1002531646 | I46: =I13 -> 90 | J46: =(F46*G46) -> 15.5 | K46: =J46/(H46*4187) -> 0.0369258624 | L46: =ГР_Предв!F43 -> 50 | N46: =N16 -> 0.26 | O46: =N46*K46 -> 0.009600724223
C47: =ГР_Предв!H44 -> 3 | D47: =ГР_Предв!M44 -> 40 | E47: СТАЛЬ | F47: 155 | G47: =ГР_Предв!L44 -> 1.9 | H47: =ГР_Предв!K44/3600 -> 0.1002531646 | I47: =I46-K46 -> 89.96307414 | J47: 294.5 | K47: 0.7015913856 | L47: =ГР_Предв!F44 -> 50 | N47: =N17 -> 1.21 | O47: 0.8489255765
C48: =ГР_Предв!H45 -> 5 | D48: =ГР_Предв!M45 -> 40 | E48: СТАЛЬ | F48: 155 | G48: =ГР_Предв!L45 -> 3.8 | H48: =ГР_Предв!K45/3600 -> 0.02005063291 | I48: 89.26148275 | J48: 589 | K48: 7.015913856 | L48: =ГР_Предв!F45 -> 50 | N48: =N18 -> 2.16 | O48: 15.15437393
C49: =ГР_Предв!H46 -> 5.2 | D49: =ГР_Предв!M46 -> 40 | E49: СТАЛЬ | F49: 155 | G49: =ГР_Предв!L46 -> 1.75 | H49: =ГР_Предв!K46/3600 -> 0.02005063291 | I49: 82.2455689 | J49: 271.25 | K49: 3.23101296 | L49: =ГР_Предв!F46 -> 50 | N49: =N19 -> 2.16 | O49: 6.978987993
C50: =ГР_Предв!H47 -> 17 | D50: =ГР_Предв!M47 -> 32 | E50: СТАЛЬ | F50: 138 | G50: =ГР_Предв!L47 -> 3.8 | H50: =ГР_Предв!K47/3600 -> 0.02005063291 | I50: 79.01455594 | J50: 524.4 | K50: 6.246426529 | L50: =ГР_Предв!F47 -> 40 | N50: =N34 -> 2.16 | O50: 13.4922813
C51: =ГР_Предв!H48 -> 28 | D51: =ГР_Предв!M48 -> 10 | E51: СТАЛЬ | F51: 63 | G51: =ГР_Предв!L48 -> 3.97 | H51: =ГР_Предв!K48/3600 -> 0.006265822785 | I51: 72.76812941 | J51: 250.11 | K51: 9.533447684 | L51: =ГР_Предв!F48 ->  | N51: =ИД!B14/2+ИД!H13 -> 2.16 | O51: 20.592247
C52: =ГР_Предв!H49 -> 30 | D52: =ГР_Предв!M49 -> 10 | E52: СТАЛЬ | F52: 63 | G52: =ГР_Предв!L49 -> 1.7 | H52: =ГР_Предв!K49/3600 -> 0.006265822785 | I52: 63.23468172 | J52: 107.1 | K52: 4.082332762 | L52: =ГР_Предв!F49 ->  | N52: =ИД!K16+ИД!R14/2+ИД!Z13/2 -> 1.3 | O52: 5.30703259
C53: =ГР_Предв!H50 -> 32 | D53: =ГР_Предв!M50 -> 10 | E53: СТАЛЬ | F53: 63 | G53: =ГР_Предв!L50 -> 0.1 | H53: =ГР_Предв!K50/3600 -> 0.006265822785 | I53: 59.15234896 | J53: 6.3 | K53: 0.2401372213 | L53: =ГР_Предв!F50 ->  | N53: =ИД!K16+ИД!R14/2 -> 0.45 | O53: 0.1080617496
A54: Qтруб | B54: =SUM(J51:J53,J55:J57) -> 770.49 | C54: РАДИАТОР 3 | E54: Qрад | F54: =ИД!R98-B54 -> -320.49 | G54: Ср.Т. | H54: =I53-(J54*ГР_Предв!$N$1*ГР_Предв!$N$2)/(2*4187*H53) -> 50.26346007 | J54: 400 | K54: =I53-L54 -> 17.77777778 | L54: =I53-(J54*ГР_Предв!$N$1*ГР_Предв!$N$2)/(4187*H53) -> 41.37457118 | N54: =N22 -> 0.2 | O54: 3.555555556
C55: =ГР_Предв!H52 -> 34 | D55: =ГР_Предв!M52 -> 10 | E55: СТАЛЬ | F55: =IF(E55="ППР",VLOOKUP(D55,$Q$3:$T$10,4),VLOOKUP(D55,$X$3:$AA$10,4)) -> 63 | G55: =ГР_Предв!L52 -> 0 | H55: =ГР_Предв!K52/3600 -> 0.006265822785 | I55: =L54 -> 41.37457118 | J55: =(F55*G55) -> 0 | K55: =J55/(H55*4187) -> 0 | L55: =ГР_Предв!F52 ->  | N55: =ИД!K16-ИД!R14/2 -> -0.05 | O55: 0
C56: =ГР_Предв!H53 -> 36 | D56: =ГР_Предв!M53 -> 10 | E56: СТАЛЬ | F56: 63 | G56: =ГР_Предв!L53 -> 0.2 | H56: =ГР_Предв!K53/3600 -> 0.006265822785 | I56: =I55-K55 -> 41.37457118 | J56: 12.6 | K56: 0.4802744425 | L56: =ГР_Предв!F53 ->  | N56: =ИД!K16-ИД!R14/2-ИД!Z19/2 -> -0.15 | O56: -0.07204116638
C57: =ГР_Предв!H54 -> 38 | D57: =ГР_Предв!M54 -> 10 | E57: СТАЛЬ | F57: 63 | G57: =ГР_Предв!L54 -> 6.26 | H57: =ГР_Предв!K54/3600 -> 0.006265822785 | I57: 40.89429674 | J57: 394.38 | K57: 15.03259005 | L57: =ГР_Предв!F54 ->  | N57: =ИД!K16-ИД!R14/2-ИД!Z19 -> -0.25 | O57: -3.758147513
C58: =ГР_Предв!H55 -> 27 | D58: =ГР_Предв!M55 -> 32 | E58: СТАЛЬ | F58: 138 | G58: =ГР_Предв!L55 -> 3.46 | H58: =ГР_Предв!K55/3600 -> 0.02005063291 | I58: 25.86170669 | J58: 477.48 | K58: 5.687535735 | L58: =ГР_Предв!F55 -> 40 | N58: =N57 -> -0.25 | O58: -1.421883934 | T58: НЕВЯЗКА | U58: =1-O62/U62 -> -0.537722929
C59: =ГР_Предв!H56 -> 14.1 | D59: =ГР_Предв!M56 -> 40 | E59: СТАЛЬ | F59: 155 | G59: =ГР_Предв!L56 -> 2.42 | H59: =ГР_Предв!K56/3600 -> 0.02046835443 | I59: 20.17417095 | J59: 375.1 | K59: 4.376845078 | L59: =ГР_Предв!F56 -> 50 | N59: =N58 -> -0.25 | O59: -1.094211269
C60: =ГР_Предв!H57 -> 15 | D60: =ГР_Предв!M57 -> 40 | E60: СТАЛЬ | F60: 155 | G60: =ГР_Предв!L57 -> 1.5 | H60: =ГР_Предв!K57/3600 -> 0.1002531646 | I60: 15.79732588 | J60: 232.5 | K60: 0.553887936 | L60: =ГР_Предв!F57 -> 50 | N60: =N59 -> -0.25 | O60: -0.138471984
C61: =ГР_Предв!H58 -> 16 | D61: =ГР_Предв!M58 -> 40 | E61: СТАЛЬ | F61: 155 | G61: =ГР_Предв!L58 -> 0.1 | H61: =ГР_Предв!K58/3600 -> 0.1002531646 | I61: 15.24343794 | J61: 15.5 | K61: 0.0369258624 | L61: =ГР_Предв!F58 -> 50 | N61: =N60 -> -0.25 | O61: -0.009231465599
B62: Остывание: | K62: =I46-I59 -> 69.82582905 | L62: 0С | M62: Действительное ЕЦД: | O62: =SUM(O46:O60)*ИД!$L$29*9.81 -> 373.9560106 | P62: Па | T62: Потери: | U62: =ГР_Предв!X59 -> 243.1881606 | V62: Па

Sheet Бачок
C11: Внутр. Диам | D11: Длина
C12: 10 | D12: 12.9 | E12: =(C12/1000)^2*3.1416/4 -> 7.854e-05 | F12: =E12*D12 -> 0.001013166
C13: 15 | D13: 8.8 | E13: =(C13/1000)^2*3.1416/4 -> 0.000176715 | F13: =E13*D13 -> 0.001555092
C14: 20 | D14: 11.1 | E14: 0.00031416 | F14: 0.003487176
C15: 25 | D15: 0.5 | E15: 0.000490875 | F15: 0.0002454375
C16: 32 | D16: 16.7 | E16: 0.0008042496 | F16: 0.01343096832
C17: 40 | D17: 32 | E17: 0.00125664 | F17: 0.04021248
F18: =SUM(F12:F17) -> 0.05994431982 | G18: =F18*1000 -> 59.94431982
C19: Секций рад | D19: Воды в 1
C20: 22 | D20: 0.2 | E20: =D20*C20 -> 4.4
C25: Воды в системе | F25: Бак
C26: =G18+E20 -> 64.34431982 | F26: =C26*0.1 -> 6.434431982 | G26: литров
